[Event "Early-Titled-Tuesday-Blitz-February-27-2024"]
[Site "Chess.com"]
[Date "2024.02.27"]
[Round "8"]
[White "WiktoriaPOL"]
[Black "AlainBruxelles"]
[Result "0-1"]
[WhiteElo "2251"]
[BlackElo "2432"]
[TimeControl "180+1"]
[EndTime "9:25:58 PST"]
[Termination "AlainBruxelles won by resignation"]

1. c4 {[%clk 0:02:57.3]} 1... c5 {[%clk 0:02:57.6]} 2. Nf3 {[%clk 0:02:56.5]}
2... Nf6 {[%clk 0:02:57.1]} 3. Nc3 {[%clk 0:02:56.1]} 3... Nc6 {[%clk
0:02:57.2]} 4. g3 {[%clk 0:02:54.1]} 4... d5 {[%clk 0:02:57.4]} 5. cxd5 {[%clk
0:02:53.9]} 5... Nxd5 {[%clk 0:02:57.1]} 6. Bg2 {[%clk 0:02:54]} 6... Nc7 {[%clk
0:02:57.2]} 7. d3 {[%clk 0:02:52.7]} 7... e5 {[%clk 0:02:57.2]} 8. O-O {[%clk
0:02:52]} 8... Be7 {[%clk 0:02:56.2]} 9. Be3 {[%clk 0:02:39.2]} 9... Bd7 {[%clk
0:02:53.9]} 10. Nd2 {[%clk 0:02:27.9]} 10... O-O {[%clk 0:02:51]} 11. a4 {[%clk
0:02:24.3]} 11... Rc8 {[%clk 0:02:47.9]} 12. Nc4 {[%clk 0:02:20.9]} 12... b6
{[%clk 0:02:47.1]} 13. b3 {[%clk 0:02:03.8]} 13... f6 {[%clk 0:02:45.4]} 14. Bd2
{[%clk 0:01:39.3]} 14... Nd4 {[%clk 0:02:35.4]} 15. a5 {[%clk 0:01:29.2]} 15...
b5 {[%clk 0:02:30.2]} 16. Ne3 {[%clk 0:01:27]} 16... Be6 {[%clk 0:02:21.8]} 17.
Rb1 {[%clk 0:01:21.4]} 17... a6 {[%clk 0:02:18.3]} 18. Ne4 {[%clk 0:00:49.4]}
18... f5 {[%clk 0:02:08.7]} 19. Nc3 {[%clk 0:00:47.2]} 19... f4 {[%clk
0:02:07.6]} 20. gxf4 {[%clk 0:00:25.2]} 20... exf4 {[%clk 0:02:07.2]} 21. Nc2
{[%clk 0:00:20.8]} 21... Bxb3 {[%clk 0:01:55]} 22. Rxb3 {[%clk 0:00:20.2]} 22...
Nxb3 {[%clk 0:01:54.1]} 23. Ne4 {[%clk 0:00:09]} 23... Nd5 {[%clk 0:01:45.4]}
24. Na3 {[%clk 0:00:02.6]} 24... Nd4 {[%clk 0:01:42.2]} 25. Bc3 {[%clk
0:00:01.2]} 25... Nxc3 {[%clk 0:01:38.4]} 26. Nxc3 {[%clk 0:00:02.1]} 26... b4
{[%clk 0:01:37.4]} 27. Nd5 {[%clk 0:00:02.4]} 27... bxa3 {[%clk 0:01:34.1]} 0-1

[Event "Early-Titled-Tuesday-Blitz-February-27-2024"]
[Site "Chess.com"]
[Date "2024.02.27"]
[Round "8"]
[White "Hikaru"]
[Black "SantoBlue"]
[Result "1-0"]
[WhiteElo "3241"]
[BlackElo "2969"]
[TimeControl "180+1"]
[EndTime "9:25:59 PST"]
[Termination "Hikaru won by resignation"]

1. h3 {[%clk 0:03:00.9]} 1... d5 {[%clk 0:02:56.7]} 2. d4 {[%clk 0:02:59.8]}
2... Nf6 {[%clk 0:02:55.2]} 3. Bf4 {[%clk 0:02:58.9]} 3... c5 {[%clk 0:02:53.5]}
4. e3 {[%clk 0:02:57.5]} 4... Nc6 {[%clk 0:02:52.3]} 5. Nc3 {[%clk 0:02:56.8]}
5... Bf5 {[%clk 0:02:47.1]} 6. g4 {[%clk 0:02:55.3]} 6... Bg6 {[%clk 0:02:47.1]}
7. Bd3 {[%clk 0:02:54.9]} 7... cxd4 {[%clk 0:02:45.6]} 8. exd4 {[%clk
0:02:54.8]} 8... e6 {[%clk 0:02:34.8]} 9. Nge2 {[%clk 0:02:54.5]} 9... Be7
{[%clk 0:02:29.3]} 10. Qd2 {[%clk 0:02:51.4]} 10... a6 {[%clk 0:02:25.6]} 11. g5
{[%clk 0:02:42.4]} 11... Ne4 {[%clk 0:02:22.3]} 12. Bxe4 {[%clk 0:02:42.4]}
12... dxe4 {[%clk 0:02:23.1]} 13. d5 {[%clk 0:02:42.4]} 13... exd5 {[%clk
0:02:18.4]} 14. Nxd5 {[%clk 0:02:41.9]} 14... O-O {[%clk 0:02:18.9]} 15. O-O-O
{[%clk 0:02:39.5]} 15... Bc5 {[%clk 0:02:14.1]} 16. Be3 {[%clk 0:02:34.3]} 16...
Bxe3 {[%clk 0:02:11.2]} 17. Qxe3 {[%clk 0:02:35.2]} 17... Qa5 {[%clk 0:02:09.7]}
18. Kb1 {[%clk 0:02:33]} 18... Rad8 {[%clk 0:02:07.3]} 19. Nef4 {[%clk
0:02:31.6]} 19... Rfe8 {[%clk 0:01:51.1]} 20. a3 {[%clk 0:02:21.7]} 20... Ne5
{[%clk 0:01:35.1]} 21. h4 {[%clk 0:02:06.8]} 21... Nc4 {[%clk 0:01:30]} 22. Qd4
{[%clk 0:02:06.6]} 22... Qb5 {[%clk 0:01:19.7]} 23. a4 {[%clk 0:01:25.3]} 23...
Qxa4 {[%clk 0:01:05.5]} 24. h5 {[%clk 0:00:59.3]} 24... Bf5 {[%clk 0:00:53.5]}
25. h6 {[%clk 0:00:54.5]} 25... f6 {[%clk 0:00:52.5]} 26. hxg7 {[%clk
0:00:53.6]} 1-0

[Event "Early-Titled-Tuesday-Blitz-February-27-2024"]
[Site "Chess.com"]
[Date "2024.02.27"]
[Round "8"]
[White "rasmussvane"]
[Black "chipmunknau"]
[Result "1-0"]
[WhiteElo "2941"]
[BlackElo "2731"]
[TimeControl "180+1"]
[EndTime "9:26:09 PST"]
[Termination "rasmussvane won by resignation"]

1. Nf3 {[%clk 0:02:59.3]} 1... Nf6 {[%clk 0:02:57.2]} 2. g3 {[%clk 0:02:59.1]}
2... d5 {[%clk 0:02:55.6]} 3. Bg2 {[%clk 0:02:59]} 3... e6 {[%clk 0:02:55.6]} 4.
O-O {[%clk 0:02:59.2]} 4... Be7 {[%clk 0:02:55.8]} 5. c4 {[%clk 0:02:58.9]} 5...
O-O {[%clk 0:02:55.6]} 6. b3 {[%clk 0:02:58.2]} 6... c5 {[%clk 0:02:53.3]} 7.
cxd5 {[%clk 0:02:57.4]} 7... Nxd5 {[%clk 0:02:52.6]} 8. Nc3 {[%clk 0:02:55.4]}
8... Nxc3 {[%clk 0:02:43.7]} 9. dxc3 {[%clk 0:02:56.3]} 9... Qxd1 {[%clk
0:02:43.8]} 10. Rxd1 {[%clk 0:02:55.7]} 10... Bf6 {[%clk 0:02:44.7]} 11. Be3
{[%clk 0:02:50.4]} 11... Nd7 {[%clk 0:02:30.6]} 12. Rac1 {[%clk 0:02:31]} 12...
a5 {[%clk 0:02:29.3]} 13. Nd2 {[%clk 0:02:29.3]} 13... a4 {[%clk 0:02:09.9]} 14.
Nc4 {[%clk 0:02:25.6]} 14... axb3 {[%clk 0:02:10]} 15. axb3 {[%clk 0:02:26.5]}
15... Ra2 {[%clk 0:02:09.8]} 16. Nd6 {[%clk 0:02:19.5]} 16... Ne5 {[%clk
0:01:53.4]} 17. Bxc5 {[%clk 0:02:02.3]} 17... Be7 {[%clk 0:01:30.3]} 18. Nxb7
{[%clk 0:01:43]} 18... Bxc5 {[%clk 0:01:22.2]} 19. Nxc5 {[%clk 0:01:43.9]} 19...
Rxe2 {[%clk 0:01:21.9]} 20. Re1 {[%clk 0:01:42.9]} 20... Rxe1+ {[%clk
0:01:19.7]} 21. Rxe1 {[%clk 0:01:43.8]} 21... Nd7 {[%clk 0:01:11.7]} 22. Nxd7
{[%clk 0:01:42.3]} 22... Bxd7 {[%clk 0:01:12.6]} 23. Rd1 {[%clk 0:01:26.7]}
23... Bc8 {[%clk 0:01:04.8]} 24. c4 {[%clk 0:01:23.9]} 24... f5 {[%clk
0:00:59.7]} 25. b4 {[%clk 0:01:23.2]} 25... Kf7 {[%clk 0:00:59.9]} 26. b5 {[%clk
0:01:23.1]} 26... e5 {[%clk 0:00:57.5]} 27. Bd5+ {[%clk 0:01:14.2]} 27... Be6
{[%clk 0:00:52.3]} 28. Bxe6+ {[%clk 0:01:06.4]} 28... Kxe6 {[%clk 0:00:53.2]}
29. c5 {[%clk 0:01:06.8]} 29... Rc8 {[%clk 0:00:49.9]} 30. c6 {[%clk 0:01:07.1]}
30... Rc7 {[%clk 0:00:42.2]} 31. Rb1 {[%clk 0:00:57.2]} 1-0

[Event "Early-Titled-Tuesday-Blitz-February-27-2024"]
[Site "Chess.com"]
[Date "2024.02.27"]
[Round "8"]
[White "Yurovskykh_Oleksandr"]
[Black "Eagle_2019"]
[Result "0-1"]
[WhiteElo "2680"]
[BlackElo "2884"]
[TimeControl "180+1"]
[EndTime "9:26:09 PST"]
[Termination "Eagle_2019 won by resignation"]

1. d4 {[%clk 0:03:00.9]} 1... d5 {[%clk 0:03:00]} 2. Bf4 {[%clk 0:02:58.4]} 2...
Nf6 {[%clk 0:02:58.8]} 3. e3 {[%clk 0:02:56]} 3... e6 {[%clk 0:02:59]} 4. Nd2
{[%clk 0:02:55.6]} 4... Bd6 {[%clk 0:02:59.5]} 5. Bg3 {[%clk 0:02:55.8]} 5...
O-O {[%clk 0:02:58.7]} 6. Bd3 {[%clk 0:02:55.8]} 6... c5 {[%clk 0:02:58.4]} 7.
c3 {[%clk 0:02:56.2]} 7... Nc6 {[%clk 0:02:58.4]} 8. Ngf3 {[%clk 0:02:51.7]}
8... b6 {[%clk 0:02:57.6]} 9. e4 {[%clk 0:02:49.5]} 9... Be7 {[%clk 0:02:56.5]}
10. e5 {[%clk 0:02:47.4]} 10... Nh5 {[%clk 0:02:56.1]} 11. Ng5 {[%clk
0:02:37.7]} 11... Bxg5 {[%clk 0:02:53.9]} 12. Qxh5 {[%clk 0:02:37.3]} 12... g6
{[%clk 0:02:52]} 13. Qe2 {[%clk 0:02:33.4]} 13... cxd4 {[%clk 0:02:44.2]} 14.
Nf3 {[%clk 0:02:30.4]} 14... Bh6 {[%clk 0:02:44]} 15. h4 {[%clk 0:02:27]} 15...
dxc3 {[%clk 0:02:41.8]} 16. bxc3 {[%clk 0:02:27.2]} 16... f5 {[%clk 0:02:16.3]}
17. exf6 {[%clk 0:02:16]} 17... Qxf6 {[%clk 0:02:16]} 18. O-O {[%clk 0:02:11.3]}
18... Bf4 {[%clk 0:02:13]} 19. Rae1 {[%clk 0:01:58.9]} 19... Bd7 {[%clk
0:02:04.7]} 20. c4 {[%clk 0:01:43.3]} 20... Rae8 {[%clk 0:01:57.2]} 21. cxd5
{[%clk 0:01:36.2]} 21... exd5 {[%clk 0:01:58.1]} 22. Qd1 {[%clk 0:01:36.7]}
22... Bg4 {[%clk 0:01:52.6]} 23. Bb5 {[%clk 0:01:23]} 23... Rxe1 {[%clk
0:01:30.4]} 24. Rxe1 {[%clk 0:01:20]} 24... Bxg3 {[%clk 0:01:19.9]} 25. Qxd5+
{[%clk 0:01:18.8]} 25... Kh8 {[%clk 0:01:17]} 26. Qxc6 {[%clk 0:01:07.4]} 26...
Bxh4 {[%clk 0:00:55.9]} 27. Qe4 {[%clk 0:01:01.7]} 27... Bxf3 {[%clk 0:00:52.3]}
28. gxf3 {[%clk 0:00:48]} 28... Qg5+ {[%clk 0:00:52.2]} 29. Kf1 {[%clk
0:00:44.8]} 29... Qxb5+ {[%clk 0:00:51.5]} 0-1

[Event "Early-Titled-Tuesday-Blitz-February-27-2024"]
[Site "Chess.com"]
[Date "2024.02.27"]
[Round "8"]
[White "ReadySkate"]
[Black "Zheenbekov86"]
[Result "1-0"]
[WhiteElo "2548"]
[BlackElo "2417"]
[TimeControl "180+1"]
[EndTime "9:26:10 PST"]
[Termination "ReadySkate won on time"]

1. d4 {[%clk 0:03:00.9]} 1... Nf6 {[%clk 0:02:59.3]} 2. c4 {[%clk 0:03:00.8]}
2... g6 {[%clk 0:02:59.3]} 3. Nc3 {[%clk 0:03:01.1]} 3... Bg7 {[%clk 0:02:55.9]}
4. e4 {[%clk 0:03:01.6]} 4... d6 {[%clk 0:02:55.6]} 5. Be2 {[%clk 0:03:02.2]}
5... O-O {[%clk 0:02:54.9]} 6. Bg5 {[%clk 0:03:02.8]} 6... Nbd7 {[%clk
0:02:53.7]} 7. Qd2 {[%clk 0:03:03.3]} 7... c5 {[%clk 0:02:48.7]} 8. d5 {[%clk
0:03:03.5]} 8... a6 {[%clk 0:02:45.8]} 9. a4 {[%clk 0:03:03]} 9... Ne5 {[%clk
0:02:38.7]} 10. h3 {[%clk 0:03:01.1]} 10... e6 {[%clk 0:02:34.6]} 11. Nf3 {[%clk
0:03:00]} 11... Nxf3+ {[%clk 0:02:32.3]} 12. Bxf3 {[%clk 0:02:59.5]} 12... e5
{[%clk 0:01:57.2]} 13. O-O {[%clk 0:02:58.4]} 13... Qa5 {[%clk 0:01:44.3]} 14.
Rfb1 {[%clk 0:02:45.3]} 14... Bd7 {[%clk 0:01:43.1]} 15. Ne2 {[%clk 0:02:39.8]}
15... Qxd2 {[%clk 0:01:27.4]} 16. Bxd2 {[%clk 0:02:40.7]} 16... a5 {[%clk
0:01:27.4]} 17. b3 {[%clk 0:02:37.9]} 17... b6 {[%clk 0:01:27.1]} 18. Kh2 {[%clk
0:02:35.9]} 18... h6 {[%clk 0:01:26.6]} 19. g3 {[%clk 0:02:36]} 19... Nh7 {[%clk
0:01:24.3]} 20. Bg2 {[%clk 0:02:36]} 20... f5 {[%clk 0:01:24]} 21. f4 {[%clk
0:02:35.4]} 21... fxe4 {[%clk 0:00:58.9]} 22. Ra2 {[%clk 0:02:26.1]} 22... g5
{[%clk 0:00:37.5]} 23. Rf1 {[%clk 0:02:13.6]} 23... exf4 {[%clk 0:00:35]} 24.
gxf4 {[%clk 0:02:14.5]} 24... gxf4 {[%clk 0:00:32.1]} 25. Bxf4 {[%clk
0:02:15.4]} 25... Ng5 {[%clk 0:00:23.4]} 26. Ng3 {[%clk 0:02:06.3]} 26... Nf3+
{[%clk 0:00:21.3]} 27. Bxf3 {[%clk 0:02:05.1]} 27... exf3 {[%clk 0:00:21.3]} 28.
Bxd6 {[%clk 0:02:02.4]} 28... Rf7 {[%clk 0:00:19]} 29. Raf2 {[%clk 0:02:00.8]}
29... Re8 {[%clk 0:00:18.7]} 30. Rxf3 {[%clk 0:01:59.7]} 30... Rxf3 {[%clk
0:00:18.5]} 31. Rxf3 {[%clk 0:02:00.6]} 31... Bd4 {[%clk 0:00:15.9]} 32. Nh5
{[%clk 0:01:55.4]} 32... Re1 {[%clk 0:00:14.3]} 33. Rf8+ {[%clk 0:01:51.4]}
33... Kh7 {[%clk 0:00:13.7]} 34. Rf7+ {[%clk 0:01:51.7]} 1-0

[Event "Early-Titled-Tuesday-Blitz-February-27-2024"]
[Site "Chess.com"]
[Date "2024.02.27"]
[Round "8"]
[White "JaackCamel"]
[Black "picturesquecheck"]
[Result "1-0"]
[WhiteElo "2224"]
[BlackElo "2460"]
[TimeControl "180+1"]
[EndTime "9:26:11 PST"]
[Termination "JaackCamel won by resignation"]

1. d4 {[%clk 0:03:00.9]} 1... Nf6 {[%clk 0:02:58.3]} 2. c4 {[%clk 0:03:00.2]}
2... e6 {[%clk 0:02:56.6]} 3. Nc3 {[%clk 0:02:59.9]} 3... Bb4 {[%clk 0:02:55.6]}
4. Qc2 {[%clk 0:02:59.9]} 4... O-O {[%clk 0:02:55.3]} 5. a3 {[%clk 0:02:57.1]}
5... Bxc3+ {[%clk 0:02:54.7]} 6. Qxc3 {[%clk 0:02:57.1]} 6... d5 {[%clk
0:02:55.6]} 7. Nf3 {[%clk 0:02:55.3]} 7... dxc4 {[%clk 0:02:55.2]} 8. Qxc4
{[%clk 0:02:54.9]} 8... b6 {[%clk 0:02:55.8]} 9. e3 {[%clk 0:02:49.8]} 9... Bb7
{[%clk 0:02:54.6]} 10. Be2 {[%clk 0:02:47.2]} 10... Nbd7 {[%clk 0:02:54.8]} 11.
O-O {[%clk 0:02:45.8]} 11... c5 {[%clk 0:02:54.8]} 12. Rd1 {[%clk 0:02:37.7]}
12... Qc7 {[%clk 0:02:54.5]} 13. b4 {[%clk 0:02:32]} 13... Rac8 {[%clk
0:02:48.5]} 14. dxc5 {[%clk 0:02:21.9]} 14... bxc5 {[%clk 0:02:48.8]} 15. Bb2
{[%clk 0:02:16.1]} 15... cxb4 {[%clk 0:02:49]} 16. Qxb4 {[%clk 0:02:11.5]} 16...
Nd5 {[%clk 0:02:48.7]} 17. Qg4 {[%clk 0:02:02]} 17... N7f6 {[%clk 0:02:44.5]}
18. Qh4 {[%clk 0:01:57.8]} 18... Nc3 {[%clk 0:02:36.9]} 19. Re1 {[%clk
0:01:48.1]} 19... Nxe2+ {[%clk 0:02:16.5]} 20. Rxe2 {[%clk 0:01:47.4]} 20... Qc4
{[%clk 0:02:06.8]} 21. Bxf6 {[%clk 0:01:41.1]} 21... gxf6 {[%clk 0:01:47.2]} 22.
Nd4 {[%clk 0:01:32]} 22... Qd5 {[%clk 0:00:45.2]} 23. f4 {[%clk 0:01:17.8]}
23... e5 {[%clk 0:00:25.4]} 24. Nf5 {[%clk 0:01:11.6]} 24... h5 {[%clk 0:00:11]}
25. Qg3+ {[%clk 0:01:06]} 1-0

[Event "Early-Titled-Tuesday-Blitz-February-27-2024"]
[Site "Chess.com"]
[Date "2024.02.27"]
[Round "8"]
[White "Rurep26"]
[Black "jamengrand"]
[Result "1-0"]
[WhiteElo "2712"]
[BlackElo "2411"]
[TimeControl "180+1"]
[EndTime "9:26:13 PST"]
[Termination "Rurep26 won on time"]

1. d4 {[%clk 0:03:00.9]} 1... d5 {[%clk 0:02:59.7]} 2. Bf4 {[%clk 0:03:00.9]}
2... Nf6 {[%clk 0:02:59.3]} 3. e3 {[%clk 0:02:57.5]} 3... g6 {[%clk 0:02:59.2]}
4. Nd2 {[%clk 0:02:56.8]} 4... Bg7 {[%clk 0:02:59.3]} 5. h4 {[%clk 0:02:56.7]}
5... h6 {[%clk 0:02:58.3]} 6. Ngf3 {[%clk 0:02:55.7]} 6... O-O {[%clk
0:02:57.9]} 7. Bd3 {[%clk 0:02:43.3]} 7... c5 {[%clk 0:02:57.7]} 8. c3 {[%clk
0:02:43.3]} 8... Nc6 {[%clk 0:02:57.7]} 9. Ne5 {[%clk 0:02:42.2]} 9... Nxe5
{[%clk 0:02:52.8]} 10. Bxe5 {[%clk 0:02:43.1]} 10... e6 {[%clk 0:02:27.3]} 11.
g4 {[%clk 0:02:32]} 11... Nd7 {[%clk 0:02:23.6]} 12. Bxg7 {[%clk 0:02:31.5]}
12... Kxg7 {[%clk 0:02:23.8]} 13. f4 {[%clk 0:02:29.3]} 13... Qb6 {[%clk
0:02:09.8]} 14. Rb1 {[%clk 0:02:19.1]} 14... Qd6 {[%clk 0:01:45.1]} 15. Nf3
{[%clk 0:02:15.4]} 15... f6 {[%clk 0:01:36.8]} 16. g5 {[%clk 0:02:10.9]} 16...
cxd4 {[%clk 0:01:18.3]} 17. gxh6+ {[%clk 0:02:07.9]} 17... Kxh6 {[%clk
0:01:12.9]} 18. cxd4 {[%clk 0:01:52.7]} 18... Rg8 {[%clk 0:00:57.4]} 19. Rg1
{[%clk 0:01:46.8]} 19... e5 {[%clk 0:00:47.1]} 20. fxe5 {[%clk 0:01:41.6]} 20...
fxe5 {[%clk 0:00:47]} 21. Ng5 {[%clk 0:01:42.2]} 21... Qf6 {[%clk 0:00:37.2]}
22. Rf1 {[%clk 0:01:40.3]} 22... Qb6 {[%clk 0:00:27.6]} 23. Rf7 {[%clk
0:01:36.1]} 23... Nf8 {[%clk 0:00:16.6]} 24. Qf3 {[%clk 0:01:25.5]} 24... e4
{[%clk 0:00:10.9]} 25. Qf4 {[%clk 0:01:23.2]} 25... Qb4+ {[%clk 0:00:04]} 26.
Kf1 {[%clk 0:01:21.5]} 1-0

[Event "Early-Titled-Tuesday-Blitz-February-27-2024"]
[Site "Chess.com"]
[Date "2024.02.27"]
[Round "8"]
[White "ValentinDragnev"]
[Black "Honiex"]
[Result "1-0"]
[WhiteElo "2738"]
[BlackElo "2563"]
[TimeControl "180+1"]
[EndTime "9:26:21 PST"]
[Termination "ValentinDragnev won on time"]

1. e4 {[%clk 0:03:00.9]} 1... Nc6 {[%clk 0:02:58.2]} 2. Nc3 {[%clk 0:02:59.7]}
2... e5 {[%clk 0:02:56.4]} 3. Bc4 {[%clk 0:02:59.9]} 3... Nf6 {[%clk 0:02:53.3]}
4. d3 {[%clk 0:03:00.3]} 4... Bc5 {[%clk 0:02:51.1]} 5. Nf3 {[%clk 0:02:54.5]}
5... h6 {[%clk 0:02:45.8]} 6. a3 {[%clk 0:02:51.9]} 6... d6 {[%clk 0:02:38.4]}
7. Na4 {[%clk 0:02:49.6]} 7... Bb6 {[%clk 0:02:37.2]} 8. h3 {[%clk 0:02:46.5]}
8... O-O {[%clk 0:02:36.3]} 9. c3 {[%clk 0:02:44.7]} 9... Be6 {[%clk 0:02:35.9]}
10. Bb5 {[%clk 0:02:44]} 10... Ne7 {[%clk 0:02:18.8]} 11. O-O {[%clk 0:02:39.3]}
11... Ng6 {[%clk 0:02:17.7]} 12. Re1 {[%clk 0:02:30.6]} 12... c6 {[%clk
0:02:15.5]} 13. Nxb6 {[%clk 0:02:31.2]} 13... axb6 {[%clk 0:02:16.4]} 14. Ba4
{[%clk 0:02:31.9]} 14... Nh5 {[%clk 0:02:13.4]} 15. Bc2 {[%clk 0:02:31.9]} 15...
Nhf4 {[%clk 0:02:07.2]} 16. d4 {[%clk 0:02:06.6]} 16... Qf6 {[%clk 0:02:00.1]}
17. Be3 {[%clk 0:02:02.9]} 17... c5 {[%clk 0:01:50.1]} 18. Kh2 {[%clk
0:01:59.7]} 18... Rac8 {[%clk 0:01:29.6]} 19. Rc1 {[%clk 0:01:35.2]} 19... Rc7
{[%clk 0:00:56.5]} 20. d5 {[%clk 0:01:34]} 20... Bc8 {[%clk 0:00:53.6]} 21. Ng1
{[%clk 0:01:34.6]} 21... Nh4 {[%clk 0:00:18.8]} 22. g3 {[%clk 0:01:34.4]} 22...
Nxh3 {[%clk 0:00:07.8]} 23. Nxh3 {[%clk 0:01:33.4]} 23... Nf3+ {[%clk
0:00:07.7]} 24. Kg2 {[%clk 0:01:34.1]} 24... Nxe1+ {[%clk 0:00:07.9]} 25. Qxe1
{[%clk 0:01:34.9]} 25... Bxh3+ {[%clk 0:00:05.6]} 26. Kxh3 {[%clk 0:01:35.2]}
26... Qf3 {[%clk 0:00:06.1]} 27. Qd1 {[%clk 0:01:34.7]} 27... Qf6 {[%clk
0:00:04.2]} 28. Kg2 {[%clk 0:01:34.4]} 28... Qe7 {[%clk 0:00:02.2]} 29. Qh5
{[%clk 0:01:34.4]} 29... Rd7 {[%clk 0:00:01.6]} 30. Rh1 {[%clk 0:01:34.6]} 30...
Qf6 {[%clk 0:00:02.1]} 31. Bd1 {[%clk 0:01:30]} 31... b5 {[%clk 0:00:02.4]} 32.
Bg4 {[%clk 0:01:28.3]} 32... Rdd8 {[%clk 0:00:02.9]} 33. Bf5 {[%clk 0:01:28.9]}
33... Ra8 {[%clk 0:00:02.2]} 34. g4 {[%clk 0:01:29]} 1-0

[Event "Early-Titled-Tuesday-Blitz-February-27-2024"]
[Site "Chess.com"]
[Date "2024.02.27"]
[Round "8"]
[White "SahibSinghKnight"]
[Black "carlocapau"]
[Result "0-1"]
[WhiteElo "2560"]
[BlackElo "2488"]
[TimeControl "180+1"]
[EndTime "9:26:24 PST"]
[Termination "carlocapau won on time"]

1. e4 {[%clk 0:03:00.9]} 1... c5 {[%clk 0:02:59.8]} 2. Nf3 {[%clk 0:02:58.6]}
2... d6 {[%clk 0:02:59.8]} 3. d4 {[%clk 0:02:58.3]} 3... cxd4 {[%clk 0:02:59.7]}
4. Nxd4 {[%clk 0:02:59.2]} 4... Nf6 {[%clk 0:03:00.2]} 5. Nc3 {[%clk 0:02:59.5]}
5... a6 {[%clk 0:03:00.7]} 6. Be3 {[%clk 0:02:56.8]} 6... e5 {[%clk 0:02:57.7]}
7. Nf3 {[%clk 0:02:55]} 7... Qc7 {[%clk 0:02:55.1]} 8. a4 {[%clk 0:02:54.1]}
8... h6 {[%clk 0:02:52.3]} 9. a5 {[%clk 0:02:53.2]} 9... Be6 {[%clk 0:02:51.8]}
10. Nd5 {[%clk 0:02:38.6]} 10... Nxd5 {[%clk 0:02:47.1]} 11. exd5 {[%clk
0:02:39.5]} 11... Bf5 {[%clk 0:02:47.7]} 12. c4 {[%clk 0:02:36.8]} 12... Nd7
{[%clk 0:02:47.7]} 13. b4 {[%clk 0:02:14.7]} 13... g5 {[%clk 0:02:38.2]} 14. Nd2
{[%clk 0:02:08.9]} 14... Bg7 {[%clk 0:02:36.1]} 15. h4 {[%clk 0:01:54.4]} 15...
g4 {[%clk 0:02:32.8]} 16. h5 {[%clk 0:01:47.8]} 16... e4 {[%clk 0:02:29.8]} 17.
Rb1 {[%clk 0:01:42.4]} 17... Ne5 {[%clk 0:02:26.1]} 18. Qb3 {[%clk 0:01:26]}
18... O-O {[%clk 0:02:20.7]} 19. g3 {[%clk 0:01:18.8]} 19... Rae8 {[%clk
0:02:15.3]} 20. Be2 {[%clk 0:01:12.9]} 20... Nf3+ {[%clk 0:02:10.8]} 21. Kd1
{[%clk 0:00:55.4]} 21... Nd4 {[%clk 0:02:04.6]} 22. Qa2 {[%clk 0:00:53.3]} 22...
Rc8 {[%clk 0:01:47.8]} 23. Rc1 {[%clk 0:00:46.6]} 23... Nf3 {[%clk 0:01:40.4]}
24. Nb3 {[%clk 0:00:37]} 24... Qe7 {[%clk 0:01:33.3]} 25. Rc2 {[%clk 0:00:15.6]}
25... Bh7 {[%clk 0:01:32.3]} 26. Qb1 {[%clk 0:00:14.4]} 26... f5 {[%clk
0:01:30.3]} 27. Qc1 {[%clk 0:00:14.3]} 27... Ne5 {[%clk 0:01:27.1]} 28. Nd4
{[%clk 0:00:04.5]} 28... Nd3 {[%clk 0:01:24.7]} 29. Bxd3 {[%clk 0:00:05]} 29...
exd3 {[%clk 0:01:25.6]} 30. Rd2 {[%clk 0:00:05.9]} 30... Bxd4 {[%clk 0:01:23.7]}
31. Bxd4 {[%clk 0:00:05.8]} 31... Qe4 {[%clk 0:01:24.4]} 0-1

[Event "Early-Titled-Tuesday-Blitz-February-27-2024"]
[Site "Chess.com"]
[Date "2024.02.27"]
[Round "8"]
[White "KorolDimitriy75"]
[Black "IngOscarArdila"]
[Result "1-0"]
[WhiteElo "2411"]
[BlackElo "2282"]
[TimeControl "180+1"]
[EndTime "9:26:26 PST"]
[Termination "KorolDimitriy75 won by resignation"]

1. d4 {[%clk 0:03:00.9]} 1... Nf6 {[%clk 0:02:59.1]} 2. c4 {[%clk 0:03:01.2]}
2... e6 {[%clk 0:02:59.1]} 3. Nc3 {[%clk 0:03:01.8]} 3... Bb4 {[%clk 0:02:59.1]}
4. Qc2 {[%clk 0:03:01.8]} 4... O-O {[%clk 0:02:59.1]} 5. e4 {[%clk 0:03:02.2]}
5... d6 {[%clk 0:02:58]} 6. e5 {[%clk 0:03:02.4]} 6... dxe5 {[%clk 0:02:57.3]}
7. dxe5 {[%clk 0:03:03.3]} 7... Nfd7 {[%clk 0:02:57.2]} 8. Nf3 {[%clk
0:03:03.9]} 8... Nc6 {[%clk 0:02:55.3]} 9. Bf4 {[%clk 0:03:01.8]} 9... Qe7
{[%clk 0:02:41.5]} 10. Bd3 {[%clk 0:02:59.8]} 10... h6 {[%clk 0:02:39.3]} 11.
O-O {[%clk 0:02:57.7]} 11... Rd8 {[%clk 0:02:37]} 12. a3 {[%clk 0:02:35.7]}
12... Bxc3 {[%clk 0:02:33.2]} 13. Qxc3 {[%clk 0:02:36.6]} 13... Nc5 {[%clk
0:02:33.5]} 14. Bc2 {[%clk 0:02:36.6]} 14... a5 {[%clk 0:02:20.9]} 15. b4 {[%clk
0:02:32.4]} 15... Nd7 {[%clk 0:02:12.8]} 16. c5 {[%clk 0:02:22.6]} 16... Nf8
{[%clk 0:02:03.4]} 17. Rad1 {[%clk 0:02:16.3]} 17... Bd7 {[%clk 0:01:49.9]} 18.
Rfe1 {[%clk 0:01:58.1]} 18... axb4 {[%clk 0:01:34.9]} 19. axb4 {[%clk 0:01:59]}
19... b6 {[%clk 0:01:28.9]} 20. Be3 {[%clk 0:01:45.3]} 20... bxc5 {[%clk
0:00:39.9]} 21. Bxc5 {[%clk 0:01:46.2]} 21... Qe8 {[%clk 0:00:40]} 22. Qe3
{[%clk 0:01:29.2]} 22... Ra2 {[%clk 0:00:32.9]} 23. Qe4 {[%clk 0:01:27.3]} 23...
g6 {[%clk 0:00:31.9]} 24. Bb1 {[%clk 0:01:13.4]} 24... Ra4 {[%clk 0:00:20.5]}
25. Qh4 {[%clk 0:01:05.8]} 25... Rc8 {[%clk 0:00:19.5]} 26. Qxh6 {[%clk
0:01:03.3]} 26... Nxb4 {[%clk 0:00:16]} 27. Ng5 {[%clk 0:01:02.3]} 27... Nd5
{[%clk 0:00:14]} 28. Bxf8 {[%clk 0:01:01.4]} 1-0